bitfinex/quotes_ETHUSD_20260228
["timestamp","ask_amount","ask_price","bid_price","bid_amount"]
[1772308254659,1.75238377,1954.4,1953.4,0.48198762]
[1772308255278,1.75234899,1954.4,1953.5,1.7617419]
[1772308255989,0.4731814,1954.3,1953.1,1.76193846]
[1772308256191,0.4731814,1954.3,1953.2,5.60169896]
[1772308256382,0.4731814,1954.3,1953.2,0.48198762]
[1772308256582,0.4731814,1954.1,1952.9,1.76208425]
[1772308256989,0.4731814,1954.1,1952.9,1.28009663]
[1772308257292,0.4731814,1953.9,1953.0,1.28006268]
[1772308257495,0.4731814,1953.9,1952.8,1.28016416]
[1772308258467,2.2821814,1953.8,1952.8,1.28016416]
[1772308258767,0.4731814,1953.7,1952.8,1.28016416]
[1772308259363,1.27968877,1953.6,1952.8,1.28016416]
[1772308259587,1.75287017,1953.6,1952.6,1.76226819]
[1772308259795,0.4731814,1953.5,1952.6,1.76226819]
[1772308260697,0.4731814,1953.5,1952.5,1.28139997]
[1772308261265,1.2798198,1953.4,1952.5,1.28139997]
[1772308261570,5.11849415,1953.7,1952.6,0.48198762]
[1772308261571,1.27973086,1953.6,1952.6,0.48198762]
[1772308262799,2.9724859,1953.9,1953.1,3.41700616]
[1772308262998,4.25198404,1953.9,1953.0,0.48198762]
[1772308263301,4.25198404,1953.9,1953.1,1.28001638]
[1772308263498,0.4731814,1953.8,1952.7,0.48198762]
[1772308263691,0.4731814,1953.8,1952.8,5.60272156]
[1772308263895,0.4731814,1953.8,1952.9,0.48198762]
[1772308265295,0.4731814,1953.3,1952.5,0.001]
[1772308265686,0.4731814,1953.3,1952.5,0.48298762]
[1772308266294,1.2798198,1953.4,1952.5,0.48298762]
[1772308266678,1.27973959,1953.6,1952.8,0.48198762]
[1772308266889,1.7527747,1953.8,1952.8,0.48198762]
[1772308267397,1.7527747,1953.8,1952.9,1.76213509]
[1772308267599,0.4731814,1953.7,1952.9,1.76213509]
[1772308267798,3.0845933,1953.8,1952.9,1.76213509]
[1772308268613,0.4731814,1953.6,1952.5,0.001]
[1772308268811,0.4731814,1953.6,1952.5,1.28139873]
[1772308269011,0.4731814,1953.3,1952.5,0.001]
[1772308269217,0.4731814,1953.1,1952.4,0.001]
[1772308269427,1.28014747,1952.9,1952.4,0.001]
[1772308269722,1.75332887,1952.9,1952.4,0.001]
[1772308270510,0.4731814,1952.9,1952.4,0.001]
[1772308271414,3.08508369,1953.0,1952.4,0.001]
[1772308272213,1.28008369,1953.0,1952.4,0.001]
[1772308272787,3.08506656,1953.1,1952.4,0.001]
[1772308272982,3.08506656,1953.1,1952.5,0.001]
[1772308274022,0.4731814,1953.0,1952.5,0.001]
[1772308274937,0.4731814,1953.0,1952.2,0.001]
[1772308275727,0.4731814,1952.8,1952.2,0.001]
[1772308276704,5.11988607,1953.2,1952.2,0.45748854]
[1772308276705,3.5781975,1953.2,1952.2,0.45748854]
[1772308277029,0.49324393,1953.1,1952.2,0.45748854]
[1772308277236,0.49324393,1953.1,1952.2,0.001]
[1772308277726,6.28008192,1953.0,1952.2,0.001]
[1772308278196,6.28008192,1953.0,1952.4,0.45648854]
[1772308278197,5.0,1953.0,1952.4,0.45648854]
[1772308279105,1.804,1953.3,1952.4,0.45648854]
[1772308279315,3.08389026,1953.3,1952.4,0.45648854]
[1772308279522,3.08389026,1953.3,1952.5,1.73689827]
[1772308279813,0.49324393,1953.5,1952.6,0.45648854]
[1772308280021,1.77304585,1953.5,1952.6,0.45648854]
[1772308280202,0.49324393,1953.4,1952.5,1.28040973]
[1772308280827,0.49324393,1953.4,1952.3,0.45648854]
[1772308281124,0.49324393,1953.3,1952.2,0.001]
[1772308281497,0.49324393,1953.1,1952.2,0.001]
[1772308281696,0.49324393,1952.9,1952.2,0.001]
[1772308282899,0.49324393,1952.9,1951.7,1.28088309]
[1772308283298,0.49324393,1952.9,1951.6,1.28096801]
[1772308283514,0.49324393,1952.9,1951.2,6.05368042]
[1772308283515,0.49324393,1952.5,1951.2,6.05368042]
[1772308283829,0.49324393,1952.3,1951.2,6.05368042]
[1772308284328,0.49324393,1952.3,1951.3,0.45648854]
[1772308284527,1.186,1952.4,1951.3,0.45648854]
[1772308284824,1.67924393,1952.4,1951.3,0.45648854]
[1772308285029,0.49324393,1952.3,1951.3,0.45648854]
[1772308286232,0.49324393,1952.1,1951.3,1.28115899]
[1772308286732,1.28060649,1952.2,1951.3,1.28115899]
[1772308286733,3.07960649,1952.2,1951.3,1.28115899]
[1772308287034,3.57285042,1952.2,1951.3,1.28115899]
[1772308287234,3.57285042,1952.2,1951.4,0.001]
[1772308288323,0.49324393,1952.1,1951.4,0.001]
[1772308288540,0.002,1953.0,1951.8,14.31738018]
[1772308288702,0.002,1953.0,1952.5,5.2289486]
[1772308288901,0.002,1953.0,1952.5,0.45648854]
[1772308289134,0.002,1953.2,1952.5,0.45648854]
[1772308289505,1.28195756,1953.2,1952.2,0.45648854]
[1772308290123,1.28195756,1953.2,1952.3,1.2805409]
[1772308290732,1.77520149,1953.2,1952.3,1.2805409]
[1772308290938,0.49324393,1953.1,1952.3,1.2805409]
[1772308291306,0.49324393,1953.1,1952.0,1.2807377]
[1772308292307,1.28008192,1953.0,1952.0,1.73722624]
[1772308294053,0.49324393,1952.8,1952.0,1.2807377]
[1772308294344,1.77352251,1952.7,1951.8,1.28086894]
[1772308294710,3.07614859,1952.9,1951.9,0.45648854]
[1772308295521,3.56939252,1952.9,1951.9,0.45648854]
[1772308295944,0.49324393,1952.8,1951.8,1.28086894]
[1772308296443,1.28027858,1952.7,1951.7,5.12347576]
[1772308296813,1.77345697,1952.8,1951.8,0.45648854]
[1772308297013,3.56945697,1952.8,1951.8,0.45648854]
[1772308298426,0.49324393,1952.7,1951.8,1.28081783]
[1772308300166,0.49324393,1952.7,1951.6,1.2810002]
[1772308300457,1.77339714,1952.9,1952.0,5.2289486]
[1772308300749,1.77339714,1952.9,1952.0,0.45648854]
[1772308301251,0.49324393,1952.7,1951.9,1.28080331]
[1772308301448,0.49324393,1952.7,1951.9,1.28180331]
[1772308302658,0.49324393,1952.5,1951.9,0.001]
[1772308303028,2.28624393,1952.4,1951.9,0.001]
[1772308303354,0.49324393,1952.3,1951.8,0.001]
[1772308304652,0.47313864,1952.1,1951.8,0.001]
[1772308305246,4.77246006,1952.1,1951.4,0.001]
[1772308305425,1.28060649,1952.2,1951.4,0.47008928]
[1772308305426,1.793,1952.0,1951.4,0.47008928]
[1772308306651,1.793,1952.0,1951.5,1.28106584]
[1772308307754,3.07374145,1952.0,1951.4,1.28208572]
[1772308308425,0.48657172,1951.9,1951.4,0.001]
[1772308308625,0.48657172,1952.5,1951.5,0.46877008]
[1772308308827,1.28034415,1952.6,1951.5,0.46877008]
[1772308308828,2.27857172,1952.4,1951.5,0.46877008]
[1772308309931,0.48657172,1952.3,1951.5,0.46877008]
[1772308310139,1.792,1952.2,1951.5,0.46877008]
[1772308311634,1.28063733,1952.2,1951.6,1.2810002]
[1772308311955,3.07163733,1952.2,1951.6,1.2810002]
[1772308312381,3.55820905,1952.2,1951.5,1.28104258]
[1772308313562,3.55820905,1952.2,1951.4,1.28211738]
[1772308313563,0.48657172,1952.1,1951.4,1.28211738]
[1772308313768,1.76728859,1952.1,1951.4,0.001]
[1772308313956,0.48657172,1952.0,1951.4,0.001]
[1772308314759,1.791,1951.9,1951.4,0.001]
[1772308315938,1.28086894,1951.8,1951.4,0.001]
[1772308316359,1.76744066,1951.8,1951.4,0.001]
[1772308316865,1.76744066,1951.8,1951.7,0.001]
[1772308317066,1.76744066,1951.8,1951.4,0.001]
[1772308318960,1.28086894,1951.8,1951.4,0.001]
[1772308319556,1.794,1951.7,1951.4,0.001]
[1772308319755,1.794,1951.6,1951.4,0.001]
[1772308320332,0.48657172,1951.5,1951.1,0.001]
[1772308320744,1.28113149,1951.4,1951.1,0.001]
[1772308321184,0.48657172,1951.3,1950.7,0.001]
[1772308321341,2.28157172,1951.2,1950.7,0.001]
[1772308321951,0.48657172,1951.1,1950.7,0.001]
[1772308322670,1.28139415,1951.0,1950.7,0.001]
[1772308322874,1.28137568,1951.1,1950.7,0.001]
[1772308323228,1.796,1951.0,1950.7,0.001]
[1772308323947,1.76753411,1951.7,1950.7,0.46977008]
[1772308324149,1.796,1951.6,1950.7,0.46977008]
[1772308324756,1.28106584,1951.5,1950.8,1.28152552]
[1772308324962,1.76763756,1951.5,1950.8,1.28152552]
[1772308325646,1.28106584,1951.5,1950.7,1.28254011]
[1772308325846,0.48657172,1951.4,1950.7,1.28254011]
[1772308326244,1.795,1951.5,1950.8,0.46877008]
[1772308326978,1.795,1951.5,1950.9,1.28145983]
[1772308327691,1.76730942,1952.0,1951.0,0.46877008]
[1772308327875,1.794,1951.8,1951.0,0.46877008]
[1772308328357,1.794,1951.8,1950.9,1.28145983]
[1772308328358,0.48657172,1951.7,1950.7,0.001]
[1772308328562,0.48657172,1951.6,1950.7,1.28258698]
[1772308328764,0.48657172,1951.9,1950.8,0.46877008]
[1772308328960,0.48657172,1951.9,1950.9,1.28145983]
[1772308328961,3.07505473,1951.6,1950.9,1.28145983]
[1772308329163,3.56162645,1951.6,1950.9,1.28145983]
[1772308329369,0.002,1951.4,1950.9,1.28145983]
[1772308329857,0.002,1951.4,1950.8,0.46977008]
[1772308330058,0.002,1951.4,1950.8,0.001]
[1772308331102,0.48857172,1951.4,1950.8,0.001]
[1772308331786,1.792,1951.3,1950.8,0.001]
[1772308331990,1.792,1951.2,1950.8,0.001]
[1772308332195,1.792,1951.2,1950.4,8.54489674]
[1772308332196,0.48657172,1950.9,1950.4,0.001]
[1772308332354,0.48657172,1950.6,1949.8,1.28318009]
[1772308332551,3.60412528,1951.2,1949.9,5.12783004]
[1772308332552,1.792,1950.5,1949.9,5.12783004]
[1772308332754,0.83,1950.5,1949.9,5.12783004]
[1772308332981,0.48657172,1950.7,1949.9,5.12783004]
[1772308333193,3.60412528,1951.2,1950.0,1.28205128]
[1772308333194,0.83,1950.9,1950.0,1.28205128]
[1772308333555,1.31657172,1950.9,1949.9,6.4098974]
[1772308334096,0.48657172,1950.8,1949.9,6.4098974]
[1772308334583,1.759,1950.7,1949.9,1.28206736]
[1772308334784,0.48657172,1950.6,1950.0,5.12783004]
[1772308335156,1.76829435,1950.5,1950.0,5.12783004]
[1772308335358,1.28172263,1950.5,1950.0,5.12783004]
[1772308335586,3.04064737,1950.7,1950.0,6.87864634]
[1772308335787,1.2816026,1950.7,1950.0,6.87864634]
[1772308336087,3.0726026,1950.7,1950.0,6.87864634]
[1772308336588,3.0726026,1950.7,1950.0,1.7508163]
[1772308337082,3.0726026,1950.7,1950.1,5.12783004]
[1772308337386,3.5318506,1950.7,1950.1,5.12783004]
[1772308337574,0.459248,1950.6,1950.1,5.12783004]
[1772308338366,2.250248,1950.6,1950.1,5.12783004]
[1772308338569,0.459248,1950.6,1950.1,5.12783004]
[1772308338756,1.791,1950.5,1950.1,5.12783004]
[1772308339862,3.07272859,1950.5,1950.1,5.12783004]
[1772308340489,1.791,1950.5,1950.1,5.12783004]
[1772308341061,1.791,1950.5,1950.1,6.40979094]
[1772308341554,1.791,1950.7,1950.1,6.40979094]
[1772308342165,3.07261548,1950.7,1950.1,6.40979094]
[1772308342474,3.07261548,1950.7,1950.2,0.001]
[1772308342660,0.002,1950.5,1950.2,0.001]
[1772308344688,1.792,1950.5,1950.2,0.001]
[1772308345197,1.792,1950.5,1950.0,0.001]
[1772308345198,0.461248,1950.5,1950.0,0.001]
[1772308345365,1.791,1950.4,1950.1,4.62783004]
[1772308345565,1.791,1950.4,1950.0,0.001]
[1772308345867,1.791,1950.4,1950.0,4.62883004]
[1772308346078,1.791,1950.3,1950.0,4.62883004]
[1772308346278,1.79,1950.3,1950.0,4.62983004]
[1772308346695,3.07185675,1950.3,1950.0,4.62983004]
[1772308349999,0.002,1950.5,1950.0,4.62983004]
[1772308350302,1.792,1950.4,1950.0,4.62983004]
[1772308350871,1.792,1950.4,1950.0,5.9118769]
[1772308351495,1.792,1950.4,1950.0,4.62983004]
[1772308352002,1.792,1950.4,1950.0,5.9118745]
[1772308352906,3.53308054,1950.4,1950.0,4.62983004]
[1772308353095,0.459248,1950.3,1950.0,4.62983004]
[1772308354089,1.74115921,1950.3,1950.0,4.62983004]
[1772308355207,3.07383492,1950.4,1950.0,4.62983004]
[1772308355607,0.002,1950.5,1950.0,4.62983004]
[1772308355792,1.705,1950.4,1950.0,5.11524321]
[1772308356189,1.705,1950.4,1950.1,0.001]
[1772308356585,1.705,1950.4,1950.2,4.62883004]
[1772308356780,0.002,1950.5,1950.3,0.48541317]
[1772308357005,0.002,1950.5,1950.2,4.62883004]
[1772308357006,0.002,1950.5,1950.4,4.62783004]
[1772308357208,0.002,1950.5,1950.3,4.62783004]
[1772308358216,0.002,1950.5,1950.4,4.62883004]
[1772308358404,0.002,1950.5,1950.3,0.001]
[1772308359888,0.002,1950.5,1950.4,4.62783004]
[1772308364618,0.002,1950.5,1950.3,0.001]
[1772308364819,0.002,1950.5,1950.4,4.62783004]
[1772308365820,0.002,1951.7,1950.5,0.45804863]
[1772308365821,0.47558137,1951.4,1950.5,0.45804863]
[1772308366018,3.07517892,1951.4,1950.6,0.45804863]
[1772308366525,0.002,1951.4,1950.8,0.45950318]
[1772308366909,0.002,1951.4,1951.0,0.45950318]
[1772308367109,0.002,1951.4,1951.0,3.41726904]
[1772308367418,0.002,1951.4,1951.1,0.45950318]
[1772308367615,0.002,1951.4,1951.3,0.45950318]
[1772308367820,1.794,1951.7,1951.3,0.45950318]
[1772308368120,1.794,1951.7,1951.4,4.59720294]
[1772308368624,1.794,1951.7,1951.5,4.59620294]
[1772308369998,1.794,1951.7,1951.2,1.28126281]
[1772308370196,0.46052568,1951.6,1950.6,1.28159122]
[1772308370423,0.46052568,1951.5,1950.7,4.59720294]
[1772308371034,0.46052568,1951.5,1950.7,0.001]
[1772308371529,0.46052568,1951.5,1950.3,1.7413175]
[1772308371697,0.46052568,1951.5,1950.5,0.001]
[1772308372117,1.28126281,1951.2,1950.5,1.28272263]
[1772308372630,1.74178849,1951.2,1950.5,0.001]
[1772308372831,1.74178849,1951.2,1950.6,4.59620294]
[1772308374133,1.74178849,1951.2,1950.6,5.87783708]
[1772308374432,1.789,1951.1,1950.6,5.87783708]
[1772308375435,1.789,1951.1,1950.6,4.59620294]
[1772308375633,0.46252568,1951.7,1950.8,0.45950318]
[1772308375938,6.91312414,1951.6,1950.8,0.45950318]
[1772308376112,7.37364982,1951.6,1950.8,1.74097677]
[1772308377309,1.789,1951.5,1950.8,1.74097677]
[1772308378541,0.46052568,1951.2,1950.9,4.59720294]
[1772308378741,0.46052568,1951.2,1950.8,4.59620294]
[1772308379308,0.46052568,1951.2,1950.9,4.59720294]
[1772308379531,0.46052568,1951.2,1950.6,4.59720294]
[1772308380315,3.41726904,1951.0,1950.6,4.09720294]
[1772308380519,3.07045983,1950.9,1950.6,4.09620294]
[1772308380860,3.07045983,1950.9,1950.7,0.001]
[1772308381214,3.07045983,1950.9,1950.2,0.45950318]
[1772308381215,3.14212395,1950.9,1950.2,0.45950318]
[1772308381411,0.07166412,1950.8,1950.5,0.001]
[1772308381633,1.79,1950.7,1950.5,0.001]
[1772308381935,1.79,1950.7,1950.4,0.001]
[1772308382538,1.28165692,1950.6,1950.4,0.001]
[1772308383123,1.791,1950.5,1950.1,0.001]
[1772308383340,1.791,1950.5,1950.2,0.001]
[1772308384428,1.28178835,1950.4,1950.2,0.001]
[1772308385623,6.91809482,1950.5,1950.2,0.001]
[1772308385624,1.791,1950.5,1950.2,0.001]
[1772308385821,1.791,1950.5,1950.0,0.001]
[1772308385822,3.07273656,1950.5,1950.0,0.001]
[1772308386514,3.07272964,1950.5,1950.2,0.46466794]
[1772308386752,3.07272964,1950.5,1950.0,0.46566794]
[1772308386940,3.07272964,1950.5,1950.0,1.74771383]
[1772308387116,3.07272964,1950.5,1950.0,0.46566794]
[1772308387659,3.07272964,1950.5,1950.0,1.28304058]
[1772308387819,1.791,1950.5,1950.1,0.46466794]
[1772308388125,5.12579867,1951.0,1950.1,0.46466794]
[1772308388126,1.28139415,1951.0,1950.1,0.46466794]
[1772308388329,5.12517086,1951.2,1950.0,4.70030962]
[1772308388330,1.794,1950.9,1950.3,0.46466794]
[1772308388524,3.075502,1950.9,1950.4,0.46466794]
[1772308388863,3.075502,1950.9,1950.2,0.46466794]
[1772308389821,1.281502,1950.9,1950.2,0.46466794]
[1772308390020,1.794,1950.8,1950.2,0.46466794]
[1772308390225,1.794,1950.7,1950.2,0.46466794]
[1772308390584,9.98271842,1951.4,1950.5,0.46466794]
[1772308390585,1.28113149,1951.4,1950.5,0.46466794]
[1772308390847,1.793,1951.4,1950.5,0.46466794]
[1772308391052,1.793,1951.4,1950.7,0.46466794]
[1772308391467,1.293,1951.4,1950.8,0.45950318]
[1772308392619,1.293,1951.4,1951.0,0.45950318]
[1772308393154,1.28300379,1951.6,1951.0,0.45950318]
[1772308393360,3.07500379,1951.6,1951.0,0.45950318]
[1772308393656,0.002,1951.3,1951.0,0.45950318]
[1772308394339,0.002,1951.3,1950.7,1.74104985]
[1772308394522,0.002,1951.3,1950.8,0.45950318]
[1772308395655,0.002,1951.3,1950.5,1.74122581]
[1772308395830,0.002,1951.3,1950.6,0.45950318]
[1772308396859,0.002,1951.3,1950.7,1.77603109]
[1772308397361,0.002,1951.3,1950.7,0.49443987]
[1772308397955,1.791,1951.3,1950.7,0.49443987]
[1772308398751,1.28126281,1951.2,1950.7,0.49443987]
[1772308399167,1.28126281,1951.2,1950.4,7.66642516]
[1772308399168,1.28126281,1951.2,1950.5,1.77613582]
[1772308399470,1.76542254,1951.2,1950.5,1.77613582]
[1772308400027,1.76542254,1951.2,1950.5,0.49443987]
[1772308400349,0.48415973,1951.1,1950.3,1.77725889]
[1772308400532,0.48415973,1951.1,1950.3,0.49543987]
[1772308401053,1.28139415,1951.0,1950.3,1.77727184]
[1772308402636,1.28139415,1951.0,1950.3,0.49543987]
[1772308403160,1.28139415,1951.0,1950.3,1.77727878]
[1772308404254,1.28139415,1951.0,1950.3,1.28283891]
[1772308404456,1.28139415,1951.0,1950.4,0.49443987]
[1772308405130,1.787,1951.0,1950.5,0.49443987]
[1772308405628,0.002,1951.3,1950.6,0.49443987]
[1772308406230,1.28320839,1951.3,1950.6,0.49443987]
[1772308406426,1.76736812,1951.3,1950.6,0.49443987]
[1772308407059,1.76736812,1951.3,1950.7,1.28159122]
[1772308407273,1.76736812,1951.3,1950.4,0.001]
[1772308407274,0.48415973,1951.2,1950.4,0.001]
[1772308407434,0.48415973,1951.1,1950.4,1.28277168]
[1772308407629,0.48415973,1951.1,1950.4,1.77721155]
[1772308409551,1.28139415,1951.0,1950.4,1.77721155]
[1772308410935,1.28139415,1951.0,1950.5,0.49443987]
[1772308411661,1.76555388,1951.0,1950.4,0.001]
[1772308411963,1.76555388,1951.0,1950.4,0.49543987]
[1772308412661,0.002,1951.3,1950.4,0.49543987]
[1772308412838,1.28319927,1951.3,1950.4,0.49543987]
[1772308413346,0.002,1951.3,1950.4,0.49543987]
[1772308413670,1.28321086,1951.3,1950.6,0.49443987]
[1772308413854,1.28321086,1951.3,1950.4,0.49543987]
[1772308413855,0.48415973,1951.2,1950.4,0.49543987]
[1772308414171,0.48415973,1950.8,1950.1,0.001]
[1772308414341,0.48415973,1950.6,1950.1,0.001]
[1772308414541,2.26815973,1950.6,1950.1,0.001]
[1772308415271,0.48415973,1950.5,1950.0,0.001]
[1772308415868,1.76594808,1950.4,1950.0,0.001]
[1772308416033,1.28178835,1950.4,1950.0,0.001]
[1772308416375,0.48415973,1950.5,1950.0,0.001]
[1772308416865,1.28161624,1950.7,1950.0,0.43689601]
[1772308417076,3.06461624,1950.7,1950.0,0.43689601]
[1772308417467,3.54877597,1950.7,1950.0,0.43689601]
[1772308418267,3.54877597,1950.7,1950.1,0.001]
[1772308418455,0.48415973,1950.6,1950.1,0.001]
[1772308420675,3.06461942,1950.7,1950.1,0.43689601]
[1772308421252,1.783,1950.7,1950.1,0.43689601]
[1772308421665,0.48415973,1950.8,1950.1,0.43689601]
[1772308421873,3.54868798,1950.8,1950.1,0.43689601]
[1772308422378,0.48415973,1950.7,1950.1,0.001]
[1772308422754,0.48415973,1950.7,1950.1,0.43689601]
[1772308423575,1.28159541,1950.7,1950.1,0.43689601]
[1772308423783,0.48415973,1950.6,1950.1,0.001]
[1772308425184,1.7658579,1950.6,1950.1,0.001]
[1772308425382,0.49562576,1950.5,1950.1,0.001]
[1772308427683,1.28178835,1950.4,1950.1,0.001]
[1772308428466,1.75958607,1950.4,1950.1,0.001]
[1772308428985,3.0647739,1950.5,1950.1,0.001]
[1772308429375,3.54257162,1950.5,1950.1,0.001]
[1772308430369,2.26079772,1950.5,1950.2,0.001]
[1772308430559,3.5435238,1950.5,1950.2,0.001]
[1772308430759,1.7595238,1950.5,1950.2,0.001]
[1772308430960,3.5435238,1950.5,1950.2,0.001]
[1772308432188,2.26179772,1950.5,1950.2,0.001]
[1772308432364,3.5435266,1950.5,1950.2,0.001]
[1772308434487,0.47779772,1950.4,1950.2,0.001]
[1772308436588,1.28185407,1950.3,1950.2,0.001]
[1772308436788,1.75963795,1950.4,1950.2,0.001]
[1772308439297,0.47779772,1950.3,1950.2,0.001]
[1772308439969,1.28184023,1950.4,1950.2,0.001]
[1772308439970,0.47779772,1950.4,1950.2,0.001]
[1772308440920,1.28169083,1950.6,1950.2,0.001]
[1772308441070,0.47779772,1950.8,1950.2,0.43689601]
[1772308441375,1.75946695,1950.6,1950.2,0.43689601]
[1772308441578,0.47779772,1950.5,1950.2,0.001]
[1772308441888,0.47779772,1950.3,1950.1,0.001]
[1772308442562,0.47779772,1950.3,1950.2,0.001]
[1772308442766,0.47979772,1950.3,1950.2,0.001]
[1772308442993,0.002,1950.3,1950.2,0.43789601]
[1772308443367,0.002,1950.3,1950.2,0.001]
[1772308444469,0.47979772,1950.3,1950.0,0.001]
[1772308445568,1.75971752,1950.2,1950.0,0.001]
[1772308446681,0.002,1950.3,1950.0,0.43789601]
[1772308446990,1.28385714,1950.3,1950.0,0.43789601]
[1772308447195,2.11485714,1950.3,1950.0,0.43789601]
[1772308449277,0.47779772,1950.2,1949.9,0.001]
[1772308449476,0.47779772,1949.9,1949.2,0.43689601]
[1772308449795,0.47779772,1949.9,1948.8,0.001]
[1772308449796,0.47779772,1949.6,1948.8,0.001]
[1772308449999,0.47779772,1949.6,1948.9,0.43689601]
[1772308450203,1.89079772,1949.6,1948.9,0.43689601]
[1772308450493,1.413,1949.6,1948.9,0.43689601]
[1772308451114,1.413,1949.6,1948.8,6.07112226]
[1772308451115,0.47779772,1949.5,1948.8,0.001]
[1772308451276,0.47779772,1949.5,1948.8,1.28383975]
[1772308451673,3.55295884,1949.9,1949.0,0.43689601]
[1772308451873,2.26979772,1949.9,1949.0,0.43689601]
[1772308452073,1.75991756,1949.9,1949.0,0.43689601]
[1772308452300,0.47779772,1949.9,1949.0,0.43689601]
[1772308452682,0.47779772,1949.8,1949.0,0.43689601]
[1772308452889,0.47779772,1949.8,1948.8,1.72073576]
[1772308453207,0.47779772,1949.6,1948.8,1.72073576]
[1772308453413,1.792,1949.5,1948.8,1.72073576]
[1772308454104,0.47779772,1949.2,1948.5,1.28403342]
[1772308454894,0.47779772,1949.0,1948.5,0.001]
[1772308455193,1.28277489,1948.9,1948.5,0.001]
[1772308455384,3.55146948,1949.1,1948.5,0.001]
[1772308455584,2.26879772,1949.1,1948.5,0.001]
[1772308455780,1.76044599,1949.1,1948.6,0.001]
[1772308455976,3.55131819,1949.3,1948.6,0.43789601]
[1772308456201,0.47779772,1949.2,1948.6,0.001]
[1772308456682,0.47779772,1949.2,1948.5,0.001]
[1772308456887,0.45088638,1949.0,1948.3,0.001]
[1772308457502,0.45088638,1948.8,1948.3,0.001]
[1772308457805,0.45088638,1948.7,1948.3,0.001]
[1772308459106,2.24088638,1948.7,1948.3,0.001]
[1772308459810,0.45088638,1948.7,1948.3,0.001]
[1772308460010,1.789,1948.9,1948.3,0.001]
[1772308460518,0.45088638,1948.8,1948.3,0.001]
[1772308461815,0.45088638,1949.0,1948.3,0.001]
[1772308461995,1.28277489,1948.9,1948.3,0.43889601]
[1772308462192,0.45088638,1949.0,1948.3,0.43889601]
[1772308462596,1.73360301,1949.0,1948.3,0.43889601]
[1772308462798,0.45088638,1949.0,1948.3,0.43889601]
[1772308463110,1.73360886,1949.0,1948.3,0.43889601]
[1772308463696,0.45088638,1949.0,1948.3,0.43889601]
[1772308463894,1.73359642,1949.0,1948.3,0.43889601]
[1772308464090,0.45088638,1949.2,1948.5,0.43789601]
[1772308464606,0.45088638,1949.0,1948.3,0.001]
[1772308464801,0.45088638,1948.8,1948.3,0.001]
[1772308466625,1.73360481,1949.0,1948.3,0.001]
[1772308467224,1.73360481,1949.0,1948.3,0.43889601]
[1772308467601,0.45088638,1948.9,1948.3,0.001]
[1772308468000,0.45088638,1948.9,1948.4,0.001]
[1772308468331,0.002,1948.7,1948.4,0.001]
[1772308470023,0.45288638,1948.7,1948.4,0.001]
[1772308471311,1.73385877,1948.6,1948.4,0.001]
[1772308471708,0.45088638,1948.5,1948.4,0.001]
[1772308472103,0.45088638,1948.5,1948.1,0.001]
[1772308472304,1.73581317,1948.7,1948.1,0.001]
[1772308473014,1.73580066,1948.7,1948.1,0.43889601]
[1772308473363,1.73580066,1948.7,1948.2,1.2832358]
[1772308473528,1.73580066,1948.7,1948.1,1.7221486]
[1772308473728,0.45088638,1948.6,1948.1,0.001]
[1772308474833,3.07091428,1948.7,1948.1,0.43889601]
[1772308475205,3.52180066,1948.7,1948.1,0.43889601]
[1772308475513,3.52180066,1948.7,1948.1,1.72219117]
[1772308475715,0.45088638,1948.6,1948.1,0.43889601]
[1772308476435,3.07091428,1948.7,1948.1,1.72218703]
[1772308476436,1.28491428,1948.7,1948.1,1.72218703]
[1772308476632,1.28491428,1948.7,1948.3,0.43789601]
[1772308476633,0.002,1948.7,1948.3,0.43789601]
[1772308477012,0.002,1948.8,1948.3,0.43589601]
[1772308477217,0.002,1948.8,1948.2,3.86044055]
[1772308477420,0.002,1948.8,1948.5,0.43589601]
[1772308479326,0.002,1948.8,1948.3,1.7190186]
[1772308480211,0.002,1948.8,1948.3,1.7200186]
[1772308480610,0.002,1948.7,1948.3,1.7200186]
[1772308481007,0.002,1949.0,1948.6,0.43589601]
[1772308481218,3.42454454,1950.0,1948.6,0.43589601]
[1772308481219,0.002,1950.4,1949.0,0.43589601]
[1772308481517,1.49932165,1950.5,1949.6,1.28228326]
[1772308481723,0.45088638,1950.4,1949.7,3.89342855]
[1772308481919,1.28172929,1950.5,1949.7,3.42454454]
[1772308482136,0.002,1950.6,1950.0,3.42454454]
[1772308482817,1.28365857,1950.6,1950.0,3.42454454]
[1772308483156,1.28365857,1950.6,1949.8,0.46888401]
[1772308483157,0.45088638,1950.5,1949.5,0.46888401]
[1772308483310,0.45088638,1950.5,1949.7,3.42454454]
[1772308483520,1.73264515,1950.5,1949.8,1.75106679]
[1772308484750,0.45088638,1950.5,1949.8,1.75106679]
[1772308485051,1.73261854,1950.5,1949.8,1.75106679]
[1772308486258,0.002,1950.6,1949.9,3.87845879]
[1772308486259,1.28369613,1950.6,1949.9,3.87845879]
[1772308487345,0.002,1950.6,1950.2,0.45391425]
[1772308487643,0.002,1950.6,1950.2,1.73582224]
[1772308489918,0.002,1950.6,1949.1,0.51945025]
[1772308489919,0.4826935,1950.5,1949.1,0.51945025]
[1772308490118,3.42654454,1950.6,1949.1,1.73654628]
[1772308490119,0.4826935,1950.2,1949.1,1.73654628]
[1772308490548,0.4826935,1950.2,1949.1,5.16109082]
[1772308492050,0.4826935,1950.2,1949.2,0.45391425]
[1772308492051,1.76467903,1950.1,1949.2,0.45391425]
[1772308492268,5.12794215,1950.2,1949.4,3.87845879]
[1772308492269,1.28195843,1950.2,1949.4,3.87845879]
[1772308493553,1.28195843,1950.2,1950.0,0.001]
[1772308493953,0.4826935,1950.1,1949.1,0.45391425]
[1772308494187,0.4826935,1950.1,1949.2,1.566]
[1772308494552,0.4826935,1950.1,1949.1,3.51355012]
[1772308494766,0.4826935,1949.9,1948.8,0.45391425]
[1772308494961,0.4826935,1949.8,1948.8,0.45391425]
[1772308495163,0.4826935,1949.7,1948.5,1.7369487]
[1772308495378,0.4826935,1949.7,1948.6,2.23091425]
[1772308495774,0.4826935,1949.7,1948.6,0.45391425]
[1772308495974,0.4826935,1949.5,1948.7,1.777]
[1772308497388,0.4826935,1949.2,1948.3,0.001]
[1772308498484,1.76533677,1949.1,1948.3,0.001]
[1772308502681,1.76533677,1949.1,1948.3,0.45491425]